bitfinex/quotes_SOLUSD_20250508
["timestamp","ask_amount","ask_price","bid_price","bid_amount"]
[1746678783590,24.94642446,151.74,151.69,18.35620435]
[1746678784104,18.35620435,151.73,151.69,18.35620435]
[1746678784582,24.94642446,151.74,151.69,18.35620435]
[1746678785177,18.35620435,151.73,151.69,18.35620435]
[1746678785484,6.59108884,151.72,151.69,18.35620435]
[1746678785683,6.59108884,151.72,151.68,18.35620435]
[1746678785990,18.35620435,151.71,151.66,18.35620435]
[1746678786488,18.35620435,151.71,151.67,18.35620435]
[1746678786666,24.94729319,151.72,151.67,18.35620435]
[1746678787886,6.59108884,151.72,151.67,18.35620435]
[1746678788092,6.59108884,151.72,151.68,18.35620435]
[1746678788789,24.94729319,151.72,151.68,18.35620435]
[1746678788998,18.35620435,151.71,151.67,18.35620435]
[1746678790198,24.94775544,151.71,151.67,18.35620435]
[1746678790879,24.94775544,151.71,151.66,24.94960707]
[1746678791379,18.35620435,151.71,151.66,24.94960707]
[1746678792394,24.94780677,151.71,151.66,24.94960707]
[1746678792786,24.94780677,151.71,151.66,18.35620435]
[1746678793086,18.35620435,151.7,151.66,18.35620435]
[1746678793395,24.94780677,151.71,151.66,18.35620435]
[1746678793799,24.94780677,151.71,151.66,24.9498645]
[1746678793999,24.94780677,151.71,151.64,6.59456607]
[1746678794296,24.94780677,151.71,151.66,18.35620435]
[1746678795092,6.59108884,151.72,151.67,18.35620435]
[1746678795302,69.12702419,151.73,151.69,18.35620435]
[1746678795486,87.48322854,151.73,151.68,18.35620435]
[1746678797790,18.35620435,151.72,151.67,24.94937139]
[1746678798502,87.48322854,151.73,151.68,18.35620435]
[1746678799001,18.35620435,151.72,151.67,18.35620435]
[1746678800203,62.53625251,151.73,151.64,23.08071162]
[1746678800393,62.53625251,151.73,151.64,6.59456607]
[1746678800394,18.35620435,151.71,151.64,6.59456607]
[1746678800701,18.35620435,151.71,151.66,18.35620435]
[1746678800903,18.35620435,151.72,151.67,18.35620435]
[1746678801805,18.35620435,151.71,151.66,18.35620435]
[1746678802006,18.35620435,151.71,151.65,18.35620435]
[1746678802305,6.59195781,151.7,151.65,18.35620435]
[1746678802702,18.35620435,151.69,151.63,26.0]
[1746678802904,18.35620435,151.68,151.63,26.0]
[1746678804203,18.35620435,151.68,151.6,6.5546]
[1746678804501,18.35620435,151.64,151.59,18.35620435]
[1746678804884,81.18590137,151.67,151.59,18.35620435]
[1746678805085,81.18590137,151.67,151.6,18.35620435]
[1746678805304,18.35620435,151.65,151.6,18.35620435]
[1746678805609,18.35620435,151.63,151.56,6.5911]
[1746678805909,18.35620435,151.63,151.58,18.35620435]
[1746678806492,24.95151762,151.63,151.58,18.35620435]
[1746678807115,24.95151762,151.63,151.56,6.5911]
[1746678807292,18.35620435,151.62,151.57,18.35620435]
[1746678807907,18.35620435,151.62,151.58,18.35620435]
[1746678808101,18.35620435,151.61,151.55,32.59846476]
[1746678808308,24.95215398,151.61,151.56,18.35620435]
[1746678808611,6.59555904,151.62,151.58,18.35620435]
[1746678808992,6.59555904,151.62,151.59,18.35620435]
[1746678809194,6.59504751,151.63,151.59,18.35620435]
[1746678811215,18.35620435,151.61,151.57,18.35620435]
[1746678811614,18.35620435,151.61,151.55,26.0]
[1746678811807,18.35620435,151.61,151.56,18.35620435]
[1746678812010,18.35620435,151.61,151.55,26.0]
[1746678812219,18.35620435,151.6,151.52,51.3998]
[1746678812406,18.35620435,151.6,151.55,18.35620435]
[1746678812718,18.35620435,151.59,151.54,18.35620435]
[1746678813015,18.35620435,151.59,151.52,57.99925599]
[1746678813016,6.5967412,151.59,151.55,18.35620435]
[1746678813518,24.95294555,151.59,151.54,18.35620435]
[1746678813906,18.35620435,151.58,151.51,6.60007059]
[1746678814089,6.5967412,151.59,151.51,6.60007059]
[1746678814297,24.95294555,151.59,151.54,18.35620435]
[1746678814509,24.95294555,151.59,151.51,6.60007059]
[1746678814832,18.35620435,151.56,151.51,18.35620435]
[1746678815029,6.59848234,151.55,151.51,18.35620435]
[1746678815397,24.95468669,151.55,151.47,6.60196738]
[1746678815704,24.95468669,151.55,151.5,18.35620435]
[1746678815904,6.59848234,151.55,151.51,18.35620435]
[1746678816315,24.95468669,151.55,151.47,32.60196738]
[1746678816621,24.95468669,151.55,151.5,18.35620435]
[1746678817012,24.95468669,151.55,151.47,26.0]
[1746678817013,18.35620435,151.54,151.47,26.0]
[1746678817225,18.35620435,151.54,151.49,18.35620435]
[1746678818599,69.13444213,151.56,151.52,18.35620435]
[1746678818799,62.53625251,151.56,151.53,18.35620435]
[1746678819108,32.59730504,151.58,151.55,18.35620435]
[1746678819428,50.95350939,151.58,151.53,18.35620435]
[1746678819803,50.95350939,151.58,151.51,6.59998756]
[1746678820005,18.35620435,151.57,151.52,18.35620435]
[1746678820222,129.98270292,151.58,151.53,18.35620435]
[1746678820718,111.62649857,151.58,151.54,18.35620435]
[1746678820916,129.98270292,151.58,151.53,18.35620435]
[1746678821313,18.35620435,151.57,151.48,25.39334198]
[1746678821513,18.35620435,151.57,151.53,18.35620435]
[1746678822019,111.62649857,151.58,151.53,18.35620435]
[1746678822429,129.98270292,151.58,151.53,18.35620435]
[1746678822726,113.4897619,151.58,151.54,18.35620435]
[1746678823518,69.13355755,151.58,151.55,18.35620435]
[1746678823735,62.53625251,151.58,151.56,18.35620435]
[1746678824405,62.53625251,151.58,151.57,18.35620435]
[1746678824634,69.13210785,151.62,151.57,18.35620435]
[1746678824801,69.13210785,151.62,151.58,18.35620435]
[1746678825300,69.13210785,151.62,151.59,18.35620435]
[1746678825925,6.59326168,151.67,151.61,18.35620435]
[1746678826122,6.59326168,151.67,151.63,18.35620435]
[1746678826421,87.48541308,151.68,151.63,18.35620435]
[1746678826619,87.48541308,151.68,151.59,26.0]
[1746678826816,87.48541308,151.68,151.64,18.35620435]
[1746678827327,87.48541308,151.68,151.63,18.35620435]
[1746678827625,18.35620435,151.66,151.62,18.35620435]
[1746678828129,85.61127624,151.68,151.62,18.35620435]
[1746678828311,18.35620435,151.66,151.62,18.35620435]
[1746678828517,6.59413122,151.65,151.62,18.35620435]
[1746678828716,6.59413122,151.65,151.63,18.35620435]
[1746678829516,6.59413122,151.65,151.62,18.35620435]
[1746678831103,6.59369642,151.66,151.62,18.35620435]
[1746678831537,24.94990077,151.66,151.58,25.24669683]
[1746678831708,24.94990077,151.66,151.62,18.35620435]
[1746678832235,41.43414183,151.66,151.61,18.35620435]
[1746678832423,18.35620435,151.64,151.6,18.35620435]
[1746678832621,6.59369642,151.66,151.62,18.35620435]
[1746678832925,6.59369642,151.66,151.63,18.35620435]
[1746678833303,18.35620435,151.67,151.63,18.35620435]
[1746678833304,24.94946603,151.67,151.63,18.35620435]
[1746678833530,24.94946603,151.67,151.62,18.35620435]
[1746678835129,18.35620435,151.66,151.59,26.0]
[1746678835423,80.89245686,151.66,151.61,18.35620435]
[1746678835832,80.89245686,151.66,151.62,18.35620435]
[1746678836032,62.53625251,151.66,151.62,18.35620435]
[1746678837036,6.59413122,151.65,151.62,18.35620435]
[1746678837735,69.13010088,151.66,151.63,18.35620435]
[1746678837936,62.53625251,151.66,151.64,18.35620435]
[1746678838521,69.12996417,151.66,151.64,18.35620435]
[1746678838814,62.53625251,151.66,151.64,18.35620435]
[1746678839420,87.48638708,151.66,151.61,1.5845]
[1746678839746,87.48638708,151.66,151.61,18.35620435]
[1746678840617,69.13018273,151.66,151.62,18.35620435]
[1746678840816,69.13018273,151.66,151.64,18.35620435]
[1746678841016,69.13018273,151.66,151.59,22.03073011]
[1746678841331,18.35620435,151.65,151.61,18.35620435]
[1746678842155,18.35620435,151.65,151.6,18.35620435]
[1746678842335,18.35620435,151.64,151.57,20.19374886]
[1746678842639,18.35620435,151.64,151.59,18.35620435]
[1746678843220,6.59543595,151.62,151.58,18.35620435]
[1746678843616,24.9516403,151.62,151.56,18.98]
[1746678843932,24.9516403,151.62,151.57,18.35620435]
[1746678847322,24.95136952,151.63,151.58,18.35620435]
[1746678847520,18.35620435,151.62,151.55,6.3471]
[1746678847733,18.35620435,151.62,151.57,18.35620435]
[1746678848140,24.95207533,151.61,151.56,18.35620435]
[1746678848633,24.95207533,151.61,151.55,18.35620435]
[1746678848634,18.35620435,151.6,151.55,18.35620435]
[1746678849040,18.35620435,151.6,151.56,18.35620435]
[1746678849744,18.35620435,151.6,151.53,20.20734886]
[1746678850045,18.35620435,151.6,151.56,18.35620435]
[1746678850441,24.95294555,151.59,151.55,18.35620435]
[1746678852046,69.13184236,151.62,151.58,18.35620435]
[1746678852550,18.35620435,151.61,151.54,6.59877033]
[1746678852726,18.35620435,151.61,151.57,18.35620435]
[1746678853049,69.13184236,151.62,151.59,18.35620435]
[1746678853345,69.13184236,151.62,151.6,18.35620435]
[1746678856843,69.13184236,151.62,151.59,18.35620435]
[1746678857049,69.13184236,151.62,151.58,18.35620435]
[1746678858122,87.48804671,151.62,151.57,18.64964886]
[1746678858334,87.48804671,151.62,151.56,18.64964886]
[1746678858536,87.48804671,151.62,151.57,18.35620435]
[1746678859238,18.35620435,151.61,151.57,18.35620435]
[1746678860048,18.35620435,151.61,151.56,18.35620435]
[1746678860250,6.59630606,151.6,151.56,18.35620435]
[1746678860553,6.59630606,151.6,151.55,26.0]
[1746678860741,69.13205299,151.62,151.59,18.35620435]
[1746678861054,6.59580048,151.62,151.59,18.35620435]
[1746678861832,6.59500098,151.63,151.56,25.24736185]
[1746678862037,6.59500098,151.63,151.59,18.35620435]
[1746678862235,24.95120533,151.63,151.56,25.24736185]
[1746678862453,18.35620435,151.62,151.57,18.35620435]
[1746678862639,24.95120533,151.63,151.58,18.35620435]
[1746678862836,6.5946223,151.64,151.6,18.35620435]
[1746678864356,6.5946223,151.64,151.57,6.59725382]
[1746678864556,6.5946223,151.64,151.6,18.35620435]
[1746678865354,6.5946223,151.64,151.57,6.59725382]
[1746678865532,6.5946223,151.64,151.6,18.35620435]
[1746678865734,24.95082665,151.64,151.59,18.35620435]
[1746678866153,6.5946223,151.64,151.6,18.35620435]
[1746678866354,18.35620435,151.63,151.58,18.35620435]
[1746678867337,23.08103749,151.64,151.59,18.35620435]
[1746678867338,6.59543595,151.62,151.59,18.35620435]
[1746678868852,20.5816,151.68,151.59,18.35620435]
[1746678868853,16.47756693,151.73,151.63,0.14216157]
[1746678869156,62.53625251,151.74,151.71,18.35620435]
[1746678869455,62.53625251,151.74,151.72,18.35620435]
[1746678870353,23.34764013,151.79,151.73,18.35620435]
[1746678870558,18.35620435,151.78,151.73,18.35620435]
[1746678870942,6.58891744,151.77,151.73,18.35620435]
[1746678871156,6.58891744,151.77,151.69,18.64964886]
[1746678871363,18.35620435,151.76,151.71,18.35620435]
[1746678871741,18.35620435,151.75,151.7,18.35620435]
[1746678872843,18.35620435,151.75,151.69,18.64964886]
[1746678873045,6.59022011,151.74,151.69,18.64964886]
[1746678873258,6.59022011,151.74,151.7,18.35620435]
[1746678875959,23.06577039,151.74,151.7,18.35620435]
[1746678876269,23.06577039,151.74,151.69,18.64964886]
[1746678876569,23.06577039,151.74,151.7,18.35620435]
[1746678876872,23.06577039,151.74,151.71,18.35620435]
[1746678877357,6.59022011,151.74,151.72,18.35620435]
[1746678877873,6.58978583,151.75,151.72,18.35620435]
[1746678879970,6.58978583,151.75,151.73,18.35620435]
[1746678880274,6.58978583,151.75,151.74,18.35620435]
[1746678880445,6.58978583,151.75,151.69,51.24199663]
[1746678880446,6.58978583,151.75,151.69,44.64964886]
[1746678880767,6.58978583,151.75,151.73,18.35620435]
[1746678881146,6.58978583,151.75,151.72,18.35620435]
[1746678881351,6.58978583,151.75,151.73,18.35620435]
[1746678883472,69.12572857,151.76,151.74,18.35620435]
[1746678883647,69.12572857,151.76,151.75,18.35620435]
[1746678884877,62.53625251,151.76,151.75,18.35620435]
[1746678885084,69.12560411,151.76,151.74,18.35620435]
[1746678885380,69.12560411,151.76,151.73,18.35620435]
[1746678886357,6.58891744,151.77,151.73,18.35620435]
[1746678887254,6.58891744,151.77,151.75,18.35620435]
[1746678887860,6.58891744,151.77,151.76,18.35620435]
[1746678888372,16.46886566,151.81,151.76,18.35620435]
[1746678888551,23.056047,151.81,151.78,18.35620435]
[1746678888957,6.58718134,151.81,151.78,18.35620435]
[1746678889762,6.58718134,151.81,151.77,18.64964886]
[1746678889965,6.58718134,151.81,151.77,18.35620435]
[1746678890269,6.58718134,151.81,151.78,18.35620435]
[1746678890873,6.58718134,151.81,151.79,18.35620435]
[1746678893373,6.58718134,151.81,151.75,18.64964886]
[1746678893678,62.53625251,151.82,151.8,18.35620435]
[1746678893679,69.12316724,151.82,151.8,18.35620435]
[1746678893977,6.58691473,151.82,151.8,18.35620435]
[1746678894576,6.58587987,151.84,151.8,18.35620435]
[1746678895381,6.58587987,151.84,151.81,18.35620435]
[1746678895882,6.58587987,151.84,151.82,18.35620435]
[1746678896881,6.58587987,151.84,151.81,18.35620435]
[1746678897450,41.4067839,151.84,151.76,18.64964886]
[1746678897655,41.4067839,151.84,151.8,18.35620435]
[1746678897854,23.05057955,151.84,151.8,18.35620435]
[1746678898279,23.05057955,151.84,151.81,18.35620435]
[1746678899258,6.58587987,151.84,151.82,18.35620435]
[1746678899679,6.58587987,151.84,151.81,18.35620435]
[1746678899867,6.58587987,151.84,151.79,18.64964886]
[1746678899868,6.58587987,151.84,151.8,18.35620435]
[1746678900184,41.4067839,151.84,151.79,18.35620435]
[1746678900862,23.05057955,151.84,151.79,18.35620435]
[1746678901161,41.4067839,151.84,151.79,18.35620435]
[1746678901361,18.35620435,151.83,151.76,18.64964886]
[1746678901574,18.35620435,151.81,151.76,37.00585321]
[1746678901961,80.89245686,151.82,151.77,18.35620435]
[1746678902384,80.89245686,151.82,151.76,18.64964886]
[1746678902564,6.58718134,151.81,151.77,18.35620435]
[1746678903689,24.94338569,151.81,151.76,18.64964886]
[1746678903886,41.41133905,151.81,151.75,26.0]
[1746678904076,41.41133905,151.81,151.77,18.35620435]
[1746678904265,18.35620435,151.79,151.7,1.6451]
[1746678904467,18.35620435,151.79,151.74,18.35620435]
[1746678904665,6.58804927,151.79,151.76,18.35620435]
[1746678904984,69.12397473,151.8,151.77,18.35620435]
[1746678907792,69.12397473,151.8,151.77,11.46740745]
[1746678909093,62.53625251,151.8,151.78,11.46740745]
[1746678909391,6.58729792,151.81,151.79,11.46740745]
[1746678910389,6.58631364,151.83,151.8,11.46740745]
[1746678910574,18.05372109,151.83,151.78,30.11705631]
[1746678910885,6.58631364,151.83,151.78,30.11705631]
[1746678911073,6.58631364,151.83,151.79,11.46740745]
[1746678911275,6.58631364,151.83,151.8,11.46740745]
[1746678911475,6.58631364,151.83,151.78,18.64964886]
[1746678911476,6.58631364,151.83,151.81,11.46740745]
[1746678912278,6.58587987,151.84,151.81,11.46740745]
[1746678912606,6.58587987,151.84,151.82,11.46740745]
[1746678914095,26.0,151.85,151.82,11.46740745]
[1746678914096,6.58544616,151.85,151.82,11.46740745]
[1746678914394,6.58544616,151.85,151.83,11.46740745]
[1746678914599,69.12140151,151.86,151.84,11.46740745]
[1746678914894,6.585149,151.86,151.85,11.46740745]
[1746678915282,6.58414537,151.88,151.85,11.46740745]
[1746678915486,6.58414537,151.88,151.86,11.46740745]
[1746678916088,6.58414537,151.88,151.85,11.46740745]
[1746678917900,6.58414537,151.88,151.83,18.64964886]
[1746678917901,6.58414537,151.88,151.86,11.46740745]
[1746678918505,6.58414537,151.88,151.85,11.46740745]
[1746678918807,6.58414537,151.88,151.83,18.64964886]
[1746678919110,18.05155282,151.88,151.83,30.11705631]
[1746678919297,11.46740745,151.87,151.83,11.46740745]
[1746678919487,11.46740745,151.87,151.82,11.46740745]
[1746678919796,11.46740745,151.87,151.83,11.46740745]
[1746678919999,6.58501251,151.86,151.83,11.46740745]
[1746678921099,23.04754378,151.86,151.8,18.76]
[1746678921301,34.51495123,151.86,151.81,30.11705631]
[1746678922913,34.51495123,151.86,151.81,11.46740745]
[1746678923804,34.51495123,151.86,151.82,11.46740745]
[1746678924006,34.51495123,151.86,151.8,26.0]
[1746678924185,34.51495123,151.86,151.81,11.46740745]
[1746678924399,23.04754378,151.86,151.81,11.46740745]
[1746678924747,6.58501251,151.86,151.82,11.46740745]
[1746678924902,6.58501251,151.86,151.83,11.46740745]
[1746678926600,62.53625251,151.88,151.85,11.46740745]
[1746678926806,6.58386249,151.89,151.87,11.46740745]
[1746678927686,6.58327847,151.9,151.86,18.32512374]
[1746678928408,6.58327847,151.9,151.83,25.23594659]
[1746678928625,6.58327847,151.9,151.86,18.32512374]
[1746678929628,6.58327847,151.9,151.87,18.32512374]
[1746678930328,6.58327847,151.9,151.85,18.64964886]
[1746678930501,6.58327847,151.9,151.86,18.32512374]
[1746678930702,6.58327847,151.9,151.87,18.32512374]
[1746678931126,6.58327847,151.9,151.85,18.64964886]
[1746678931306,24.90840221,151.9,151.81,25.34703452]
[1746678931623,24.90840221,151.9,151.82,18.64964886]
[1746678931928,18.32512374,151.88,151.84,18.32512374]
[1746678932514,18.32512374,151.89,151.84,18.32512374]
[1746678933424,6.58414537,151.88,151.84,18.32512374]
[1746678933627,6.58414537,151.88,151.85,18.32512374]
[1746678933821,6.58414537,151.88,151.86,18.32512374]
[1746678934001,69.11997589,151.89,151.82,25.23635597]
[1746678934206,87.44509963,151.89,151.84,18.32512374]
[1746678934526,103.90437937,151.89,151.84,18.32512374]
[1746678935428,18.32512374,151.88,151.84,18.32512374]
[1746678935626,62.53625251,151.89,151.87,18.32512374]
[1746678935807,62.53625251,151.89,151.88,18.32512374]
[1746678936727,69.1199644,151.89,151.88,18.32512374]
[1746678937523,6.58371189,151.89,151.88,18.32512374]
[1746678937708,6.5828451,151.91,151.88,18.32512374]
[1746678938926,18.32512374,151.9,151.86,18.32512374]
[1746678939620,41.3650816,151.91,151.85,18.64964886]
[1746678939808,18.32512374,151.89,151.83,26.0]
[1746678940008,18.32512374,151.89,151.84,18.32512374]
[1746678940415,18.32512374,151.89,151.85,18.32512374]
[1746678941509,18.32512374,151.89,151.84,18.32512374]
[1746678941737,24.90926911,151.88,151.82,18.64964886]
[1746678941910,24.90926911,151.88,151.83,18.32512374]
[1746678941911,18.32512374,151.87,151.83,18.32512374]
[1746678942230,23.04450881,151.88,151.84,18.32512374]
[1746678942532,23.04450881,151.88,151.83,18.32512374]
[1746678942533,41.36963255,151.88,151.83,18.32512374]
[1746678943034,24.90926911,151.88,151.84,18.32512374]
[1746678943506,6.58414537,151.88,151.84,18.32512374]
[1746678946540,24.90926911,151.88,151.83,18.32512374]
[1746678947127,18.32512374,151.87,151.8,26.88095822]
[1746678947303,18.32512374,151.87,151.82,18.32512374]
[1746678947506,6.58414537,151.88,151.83,18.32512374]
[1746678947736,11.45902485,151.87,151.83,11.45902485]
[1746678948233,6.58501251,151.86,151.82,11.45902485]
[1746678948433,11.45902485,151.85,151.8,18.64964886]
[1746678948632,11.45902485,151.85,151.8,30.10867371]
[1746678949530,80.58028987,151.86,151.81,11.45902485]
[1746678950317,11.45902485,151.85,151.8,11.45902485]
[1746678950731,11.45902485,151.84,151.8,11.45902485]
[1746678951036,11.45902485,151.84,151.79,11.45902485]
[1746678951240,11.45902485,151.84,151.8,11.45902485]
[1746678952225,6.58631364,151.83,151.8,11.45902485]
[1746678953643,6.58587987,151.84,151.8,11.45902485]
[1746678954142,18.04490472,151.84,151.79,11.45902485]
[1746678954353,11.45902485,151.83,151.79,11.45902485]
[1746678955647,6.58674746,151.82,151.79,11.45902485]
[1746678956539,6.58674746,151.82,151.81,11.45902485]
[1746678957044,6.58587987,151.84,151.81,11.45902485]
[1746678957343,18.04490472,151.84,151.8,11.45902485]
[1746678957840,18.04490472,151.84,151.79,11.45902485]
[1746678958435,11.45902485,151.83,151.79,11.45902485]
[1746678958649,11.45902485,151.83,151.78,11.45902485]
[1746678959126,6.58674746,151.82,151.78,11.45902485]
[1746678959328,6.58674746,151.82,151.79,11.45902485]
[1746678959542,6.58674746,151.82,151.8,11.45902485]
[1746678959753,6.58674746,151.82,151.77,51.23853086]
[1746678960044,6.58674746,151.82,151.8,11.45902485]
[1746678960748,6.58631364,151.83,151.8,11.45902485]
[1746678961248,18.04533849,151.83,151.77,44.64964886]
[1746678961448,18.04533849,151.83,151.79,11.45902485]
[1746678962759,6.58587987,151.84,151.79,11.45902485]
[1746678962935,6.58587987,151.84,151.8,11.45902485]
[1746678963123,6.58587987,151.84,151.81,11.45902485]
[1746678963457,18.04490472,151.84,151.8,11.45902485]
[1746678963930,6.58587987,151.84,151.8,11.45902485]
[1746678964446,18.04490472,151.84,151.77,51.23848469]
[1746678964761,18.04490472,151.84,151.8,11.45902485]
[1746678964953,6.58587987,151.84,151.81,11.45902485]
[1746678965525,11.45902485,151.83,151.77,26.0]
[1746678965740,11.45902485,151.83,151.79,11.45902485]
[1746678965942,18.04490472,151.84,151.78,18.64964886]
[1746678966731,6.58674746,151.82,151.78,18.64964886]
[1746678967047,18.04577231,151.82,151.78,11.45902485]
[1746678967637,18.04577231,151.82,151.77,18.64964886]
[1746678967830,18.04577231,151.82,151.78,11.45902485]
[1746678968329,6.58674746,151.82,151.78,11.45902485]
[1746678968653,18.04577231,151.82,151.77,18.64964886]
[1746678969027,18.04577231,151.82,151.78,11.45902485]
[1746678970335,18.04577231,151.82,151.77,18.64964886]
[1746678970649,11.45902485,151.81,151.76,1.6223]
[1746678970847,18.04707412,151.79,151.75,11.45902485]
[1746678971040,11.45902485,151.78,151.73,30.10867371]
[1746678972335,6.58854373,151.78,151.73,18.64964886]
[1746678972542,73.99527736,151.79,151.73,18.64964886]
[1746678972543,69.12443568,151.79,151.76,11.45902485]
[1746678972950,62.53625251,151.79,151.77,11.45902485]
[1746678973161,6.58706988,151.82,151.78,11.45902485]
[1746678973337,6.58706988,151.82,151.79,11.45902485]
[1746678974236,18.04609473,151.82,151.78,11.45902485]
[1746678974439,18.04609473,151.82,151.74,18.64964886]
[1746678974651,18.04609473,151.82,151.78,11.45902485]
[1746678975049,18.04609473,151.82,151.73,6.59061716]
[1746678975237,18.04609473,151.82,151.77,11.45902485]
[1746678976446,18.04609473,151.82,151.78,11.45902485]
[1746678976644,6.58706988,151.82,151.79,11.45902485]
[1746678977455,6.58706988,151.82,151.73,25.24016588]
[1746678977456,34.51296339,151.82,151.73,25.24016588]
[1746678977758,34.51296339,151.82,151.78,11.45902485]
[1746678977944,23.05393854,151.82,151.79,11.45902485]
[1746678978557,6.58706988,151.82,151.8,11.45902485]
[1746678979249,6.58706988,151.82,151.79,11.45902485]
[1746678980853,6.58706988,151.82,151.76,18.64964886]
[1746678981157,23.05393854,151.82,151.78,11.45902485]
[1746678981854,23.05393854,151.82,151.77,11.45902485]
[1746678982041,69.12258912,151.83,151.81,11.45902485]
[1746678982245,6.58633661,151.83,151.82,11.45902485]
[1746678982750,6.58633661,151.83,151.81,11.45902485]
[1746678983158,6.58587987,151.84,151.81,11.45902485]
[1746678983952,6.58587987,151.84,151.78,18.64964886]
[1746678984334,6.58587987,151.84,151.81,11.45902485]
[1746678984963,6.58587987,151.84,151.8,11.45902485]
[1746678985158,18.04490472,151.84,151.79,11.45902485]
[1746678985658,18.04490472,151.84,151.76,6.58922076]
[1746678985659,11.45902485,151.83,151.78,11.45902485]
[1746678986568,6.58587987,151.84,151.81,11.45902485]
[1746678987160,6.58544616,151.85,151.81,11.45902485]
[1746678987366,18.04447101,151.85,151.79,18.64964886]
[1746678987555,11.45902485,151.84,151.79,30.10867371]
[1746678987855,18.04447101,151.85,151.81,11.45902485]
[1746678988736,18.04447101,151.85,151.8,11.45902485]
[1746678988935,11.45902485,151.84,151.8,11.45902485]
[1746678989151,18.04447101,151.85,151.8,11.45902485]
[1746678990566,6.58544616,151.85,151.8,11.45902485]
[1746678990765,18.04447101,151.85,151.81,11.45902485]
[1746678990954,18.04447101,151.85,151.8,11.45902485]
[1746678991354,6.58544616,151.85,151.8,11.45902485]
[1746678991559,18.04447101,151.85,151.8,11.45902485]
[1746678991760,23.04906156,151.85,151.78,1.5482]
[1746678991967,23.04906156,151.85,151.79,11.45902485]
[1746678992156,11.45902485,151.84,151.79,11.45902485]
[1746678993165,34.50808641,151.85,151.8,11.45902485]
[1746678993660,34.50808641,151.85,151.81,11.45902485]
[1746678994366,23.04906156,151.85,151.8,11.45902485]
[1746678994571,34.50808641,151.85,151.8,11.45902485]
[1746678995545,23.04906156,151.85,151.81,11.45902485]
[1746678995745,34.50808641,151.85,151.81,11.45902485]
[1746678995953,11.45902485,151.84,151.79,30.10867371]
[1746678996467,11.45902485,151.83,151.78,13.00722485]
[1746678997075,11.45902485,151.83,151.78,11.45902485]
[1746678997374,11.45902485,151.82,151.77,30.10867371]
[1746678997566,88.67841408,151.86,151.75,26.0]
[1746678997567,18.04620619,151.81,151.75,26.0]
[1746678997870,18.04620619,151.81,151.76,11.45902485]
[1746678998069,18.04620619,151.81,151.77,11.45902485]
[1746678998275,6.58718134,151.81,151.78,11.45902485]
[1746678998567,6.58718134,151.81,151.77,11.45902485]
[1746678998765,18.04620619,151.81,151.76,18.64964886]
[1746678998966,18.04620619,151.81,151.77,11.45902485]
[1746678999469,18.04620619,151.81,151.76,18.64964886]
[1746678999470,18.04620619,151.81,151.76,30.10867371]
[1746678999818,11.45902485,151.8,151.75,26.0]
[1746679000273,11.45902485,151.8,151.75,37.45902485]
[1746679000466,6.58718134,151.81,151.75,37.45902485]
[1746679000661,6.58804927,151.79,151.75,37.45902485]
[1746679000862,6.58804927,151.79,151.76,11.45902485]
[1746679005472,11.45902485,151.78,151.74,30.10867371]
[1746679006376,11.45902485,151.78,151.74,18.64964886]
[1746679006671,11.45902485,151.77,151.73,11.45902485]
[1746679007076,11.45902485,151.78,151.73,11.45902485]
[1746679007678,11.45902485,151.77,151.73,11.45902485]
[1746679008175,6.5893516,151.76,151.73,11.45902485]
[1746679008964,6.5893516,151.76,151.72,11.45902485]
[1746679009779,6.5893516,151.76,151.71,44.64964886]
[1746679009973,18.04837645,151.76,151.72,11.45902485]
[1746679010570,6.5893516,151.76,151.72,11.45902485]
[1746679012373,18.04837645,151.76,151.71,18.64964886]
[1746679012678,11.45902485,151.75,151.71,11.45902485]
[1746679013177,11.45902485,151.75,151.7,18.64964886]
[1746679013355,11.45902485,151.74,151.7,30.10867371]
[1746679014177,11.45902485,151.75,151.7,30.10867371]
[1746679014363,6.59022011,151.74,151.7,30.10867371]
[1746679014760,6.58992613,151.75,151.72,11.45902485]
[1746679014964,73.99527736,151.77,151.72,11.45902485]
[1746679015289,62.53625251,151.77,151.73,11.45902485]
[1746679015470,62.53625251,151.77,151.74,11.45902485]
[1746679015667,62.53625251,151.77,151.73,11.45902485]
[1746679016574,62.53625251,151.77,151.75,11.45902485]
[1746679017077,62.53625251,151.77,151.76,11.45902485]
[1746679017665,62.53625251,151.77,151.75,11.45902485]
[1746679018380,69.12535802,151.77,151.74,11.45902485]
[1746679018683,69.12535802,151.77,151.73,30.10867371]
[1746679018873,80.58438287,151.77,151.72,13.02902485]
[1746679019073,80.58438287,151.77,151.71,6.4651]
[1746679019074,11.45902485,151.76,151.71,11.45902485]
[1746679019274,69.12535802,151.77,151.7,30.10867371]
[1746679019480,62.53625251,151.76,151.71,11.45902485]
[1746679019688,73.99527736,151.76,151.71,11.45902485]
[1746679019983,11.45902485,151.75,151.71,11.45902485]
[1746679020279,11.45902485,151.75,151.7,30.10867371]
[1746679020458,6.59022011,151.74,151.7,30.10867371]
[1746679020880,6.59022011,151.74,151.71,11.45902485]
[1746679021182,6.59022011,151.74,151.7,11.45902485]
[1746679021384,11.45902485,151.73,151.69,18.64964886]
[1746679021685,11.45902485,151.73,151.68,30.10867371]
[1746679022388,11.45902485,151.73,151.69,11.45902485]